fUSD/lending_fUSD_20240426
["ID","MTS","AMOUNT","RATE_DAILY","PERIOD"]
[323598249,1714102247026,-500.0,0.00011232,2]
[323598250,1714102247036,-500.0,0.00011232,2]
[323598251,1714102247045,-500.0,0.00011232,2]
[323598252,1714102247054,-932.58,0.00011232,2]
[323598253,1714102247064,-500.0,0.00011232,2]
[323598254,1714102247074,-500.0,0.00011232,2]
[323598255,1714102247083,-500.0,0.00011232,2]
[323598256,1714102247093,-500.0,0.00011232,2]
[323598257,1714102247104,-500.0,0.00011232,2]
[323598258,1714102247113,-988.53,0.00011232,2]
[323598259,1714102247123,-10552.33,0.00011232,2]
[323598260,1714102247134,-500.0,0.00011232,2]
[323598261,1714102247144,-500.0,0.00011232,2]
[323598262,1714102247154,-2681.41,0.00011232,2]
[323598263,1714102247166,-508.3875555,0.00011232,2]
[323598264,1714102247176,-500.0,0.00011232,2]
[323598265,1714102247185,-700.15,0.00011232,2]
[323598266,1714102247195,-500.0,0.00011232,2]
[323598267,1714102247206,-1147.98,0.00011232,2]
[323598268,1714102247217,-763.39,0.00011232,2]
[323598269,1714102247227,-500.0,0.00011232,2]
[323598270,1714102247238,-500.0,0.00011232,2]
[323598271,1714102247247,-500.0,0.00011232,2]
[323598272,1714102247257,-500.0,0.00011232,2]
[323598273,1714102247266,-500.0,0.00011232,2]
[323598274,1714102247276,-500.0,0.00011232,2]
[323598275,1714102247287,-500.0,0.00011232,2]
[323598276,1714102247298,-500.0,0.00011232,2]
[323598277,1714102247307,-150.0,0.0001126,2]
[323598278,1714102247315,-910.54,0.000113,2]
[323598279,1714102247325,-1876.49804314,0.00011347,2]
[323598280,1714102247333,-150.0,0.0001138,2]
[323598281,1714102247343,-9787.15203248,0.00011406,2]
[323598282,1714102247353,-12615.64617632,0.0001145,2]
[323598283,1714102247362,-456.00966855,0.000115,2]
[323598284,1714102247372,-150.0,0.000115,2]
[323598285,1714102247382,-500.0,0.00011506,2]
[323598286,1714102247392,-500.0,0.00011506,2]
[323598287,1714102247401,-500.0,0.00011506,2]
[323598288,1714102247410,-463.92126819,0.00011506,2]
[323598289,1714102247420,-500.0,0.00011506,2]
[323598290,1714102247429,-500.0,0.00011506,2]
[323598291,1714102247438,-404.42473146,0.00011506,2]
[323598292,1714102247447,-500.0,0.00011506,2]
[323598293,1714102247456,-500.0,0.00011506,2]
[323598294,1714102247465,-500.0,0.00011506,2]
[323598295,1714102247474,-500.0,0.00011506,2]
[323598296,1714102247486,-500.0,0.00011506,2]
[323598297,1714102247494,-500.0,0.00011506,2]
[323598298,1714102247503,-500.0,0.00011506,2]
[323598299,1714102247512,-500.0,0.00011506,2]
[323598300,1714102247521,-500.0,0.00011506,2]
[323598301,1714102247532,-500.0,0.00011506,2]
[323598302,1714102247542,-500.0,0.00011506,2]
[323598303,1714102247552,-500.0,0.00011506,2]
[323598304,1714102247562,-742.26,0.00011506,2]
[323598305,1714102247571,-526.87,0.00011506,2]
[323598306,1714102247582,-500.0,0.00011506,2]
[323598307,1714102247592,-1277.29,0.00011506,2]
[323598308,1714102247601,-500.0,0.00011506,2]
[323598309,1714102247610,-500.0,0.00011506,2]
[323598310,1714102247619,-538.31834786,0.00011506,2]
[323598311,1714102247628,-500.0,0.00011506,2]
[323598312,1714102247637,-500.0,0.00011506,2]
[323598313,1714102247646,-500.0,0.00011506,2]
[323598314,1714102247655,-500.0,0.00011506,2]
[323598315,1714102247673,-500.0,0.00011506,2]
[323598316,1714102247684,-158.95999589,0.00011506,2]
[323598317,1714102247693,-500.0,0.00011506,2]
[323598318,1714102247702,-500.0,0.00011506,2]
[323598319,1714102247711,-500.0,0.00011506,2]
[323598320,1714102247721,-500.0,0.00011506,2]
[323598321,1714102247730,-500.0,0.00011506,2]
[323598322,1714102247739,-547.35,0.00011506,2]
[323598323,1714102247748,-500.0,0.00011506,2]
[323598324,1714102247757,-500.0,0.00011506,2]
[323598325,1714102247767,-500.0,0.00011506,2]
[323598326,1714102247776,-500.0,0.00011506,2]
[323598327,1714102247787,-500.0,0.00011506,2]
[323598328,1714102247797,-500.0,0.00011506,2]
[323598329,1714102247807,-616.41007913,0.00011506,2]
[323598330,1714102247816,-687.33,0.00011506,2]
[323598331,1714102247825,-500.0,0.00011506,2]
[323598332,1714102247834,-500.0,0.00011506,2]
[323598333,1714102247844,-500.0,0.00011506,2]
[323598334,1714102247854,-500.0,0.00011506,2]
[323598335,1714102247863,-586.85,0.00011506,2]
[323598336,1714102247872,-500.0,0.00011506,2]
[323598337,1714102247882,-500.0,0.00011506,2]
[323598338,1714102247891,-500.0,0.00011506,2]
[323598339,1714102247900,-500.0,0.00011506,2]
[323598340,1714102247909,-500.0,0.00011506,2]
[323598341,1714102247919,-368.98524792,0.00011506,2]
[323598342,1714102247929,-614.38,0.00011506,2]
[323598343,1714102247938,-324.0486388,0.00011506,2]
[323598344,1714102247947,-500.0,0.00011506,2]
[323598345,1714102247957,-500.0,0.00011506,2]
[323598346,1714102247966,-500.0,0.00011506,2]
[323598347,1714102247975,-500.0,0.00011506,2]
[323598348,1714102247985,-500.0,0.00011506,2]
[323598349,1714102247994,-500.0,0.00011506,2]
[323598350,1714102248005,-574.62,0.00011506,2]
[323598351,1714102248014,-500.0,0.00011506,2]
[323598352,1714102248024,-588.27,0.00011506,2]
[323598353,1714102248034,-399.3707884,0.00011506,2]
[323598354,1714102248043,-500.0,0.00011506,2]
[323598355,1714102248052,-645.19,0.00011506,2]
[323598356,1714102248062,-500.0,0.00011506,2]
[323598357,1714102248072,-500.0,0.00011506,2]
[323598358,1714102248081,-500.0,0.00011506,2]
[323598359,1714102248091,-500.0,0.00011506,2]
[323598360,1714102248100,-500.0,0.00011506,2]
[323598361,1714102248109,-500.0,0.00011506,2]
[323598362,1714102248118,-642.73,0.00011506,2]
[323598363,1714102248128,-581.56,0.00011506,2]
[323598364,1714102248137,-500.0,0.00011506,2]
[323598365,1714102248147,-500.0,0.00011506,2]
[323598366,1714102248166,-500.0,0.00011506,2]
[323598367,1714102248181,-500.0,0.00011506,2]
[323598368,1714102248196,-500.0,0.00011506,2]
[323598369,1714102248210,-500.0,0.00011506,2]
[323598370,1714102248223,-500.0,0.00011506,2]
[323598371,1714102248237,-500.0,0.00011506,2]
[323598372,1714102248248,-500.0,0.00011506,2]
[323598373,1714102248260,-500.0,0.00011506,2]
[323598374,1714102248273,-500.0,0.00011506,2]
[323598375,1714102248287,-542.82,0.00011506,2]
[323598376,1714102248298,-500.0,0.00011506,2]
[323598377,1714102248311,-500.0,0.00011506,2]
[323598378,1714102248323,-500.0,0.00011506,2]
[323598379,1714102248336,-500.0,0.00011506,2]
[323598380,1714102248348,-500.0,0.00011506,2]
[323598381,1714102248361,-500.0,0.00011506,2]
[323598382,1714102248371,-843.19,0.00011506,2]
[323598383,1714102248381,-500.0,0.00011506,2]
[323598384,1714102248393,-500.0,0.00011506,2]
[323598385,1714102248405,-500.0,0.00011506,2]
[323598386,1714102248417,-500.0,0.00011506,2]
[323598387,1714102248429,-500.0,0.00011506,2]
[323598388,1714102248440,-577.73,0.00011506,2]
[323598389,1714102248452,-500.0,0.00011506,2]
[323598390,1714102248463,-199.15688282,0.00011506,2]
[323598391,1714102248477,-500.0,0.00011506,2]
[323598392,1714102248489,-500.0,0.00011506,2]
[323598393,1714102248501,-500.0,0.00011506,2]
[323598394,1714102248512,-500.0,0.00011506,2]
[323598395,1714102248522,-500.0,0.00011506,2]
[323598396,1714102248538,-616.75,0.00011506,2]
[323598397,1714102248550,-500.0,0.00011506,2]
[323598398,1714102248561,-500.0,0.00011506,2]
[323598399,1714102248573,-500.0,0.00011506,2]
[323598400,1714102248587,-500.0,0.00011506,2]
[323598401,1714102248599,-536.17944358,0.00011506,2]
[323598402,1714102248611,-500.0,0.00011506,2]
[323598403,1714102248624,-568.73,0.00011506,2]
[323598404,1714102248634,-639.07426001,0.00011506,2]
[323598405,1714102248646,-500.0,0.00011506,2]
[323598406,1714102248658,-787.08,0.00011506,2]
[323598407,1714102248670,-500.0,0.00011506,2]
[323598408,1714102248682,-599.64,0.00011506,2]
[323598409,1714102248694,-504.23,0.00011506,2]
[323598410,1714102248707,-500.0,0.00011506,2]
[323598411,1714102248719,-856.13,0.00011506,2]
[323598412,1714102248731,-500.0,0.00011506,2]
[323598413,1714102248744,-528.88139859,0.00011506,2]
[323598414,1714102248754,-639.71,0.00011506,2]
[323598415,1714102248765,-261.14,0.00011506,2]
[323598416,1714102248775,-500.0,0.00011506,2]
[323598417,1714102248786,-500.0,0.00011506,2]
[323598418,1714102248797,-500.0,0.00011506,2]
[323598419,1714102248809,-500.0,0.00011506,2]
[323598420,1714102248822,-500.0,0.00011506,2]
[323598421,1714102248833,-500.0,0.00011506,2]
[323598422,1714102248845,-500.0,0.00011506,2]
[323598423,1714102248855,-500.0,0.00011506,2]
[323598424,1714102248870,-500.0,0.00011506,2]
[323598425,1714102248882,-500.0,0.00011506,2]
[323598426,1714102248893,-500.0,0.00011506,2]
[323598427,1714102248903,-500.0,0.00011506,2]
[323598428,1714102248914,-488.66757146,0.00011506,2]
[323598429,1714102248925,-639.28,0.00011506,2]
[323598430,1714102248935,-500.0,0.00011506,2]
[323598431,1714102248946,-500.0,0.00011506,2]
[323598432,1714102248958,-500.0,0.00011506,2]
[323598433,1714102248968,-293.76316245,0.00011506,2]
[323598434,1714102248979,-500.0,0.00011506,2]
[323598435,1714102248990,-500.0,0.00011506,2]
[323598436,1714102249001,-500.0,0.00011506,2]
[323598437,1714102249012,-500.0,0.00011506,2]
[323598438,1714102249023,-500.0,0.00011506,2]
[323598439,1714102249035,-500.0,0.00011506,2]
[323598440,1714102249046,-500.0,0.00011506,2]
[323598441,1714102249057,-500.0,0.00011506,2]
[323598442,1714102249069,-310.72998746,0.00011506,2]
[323598443,1714102249081,-626.08,0.00011506,2]
[323598444,1714102249092,-500.0,0.00011506,2]
[323598445,1714102249104,-500.0,0.00011506,2]
[323598446,1714102249116,-500.0,0.00011506,2]
[323598447,1714102249127,-500.0,0.00011506,2]
[323598448,1714102249138,-500.0,0.00011506,2]
[323598449,1714102249150,-500.0,0.00011506,2]
[323598450,1714102249369,-500.0,0.00011506,2]
[323598451,1714102249381,-500.0,0.00011506,2]
[323598452,1714102249392,-500.0,0.00011506,2]
[323598453,1714102249404,-500.0,0.00011506,2]
[323598454,1714102249416,-500.0,0.00011506,2]
[323598455,1714102249427,-500.0,0.00011506,2]
[323598456,1714102249438,-500.0,0.00011506,2]
[323598457,1714102249451,-500.0,0.00011506,2]
[323598458,1714102249462,-500.0,0.00011506,2]
[323598459,1714102249474,-500.0,0.00011506,2]
[323598460,1714102249485,-500.0,0.00011506,2]
[323598461,1714102249496,-541.18,0.00011506,2]
[323598462,1714102249507,-500.0,0.00011506,2]
[323598463,1714102249518,-500.0,0.00011506,2]
[323598464,1714102249529,-500.0,0.00011506,2]
[323598465,1714102249541,-500.0,0.00011506,2]
[323598466,1714102249553,-500.0,0.00011506,2]
[323598467,1714102249565,-500.0,0.00011506,2]
[323598468,1714102249576,-500.0,0.00011506,2]
[323598469,1714102249587,-500.0,0.00011506,2]
[323598470,1714102249600,-500.0,0.00011506,2]
[323598471,1714102249612,-500.0,0.00011506,2]
[323598472,1714102249622,-597.86,0.00011506,2]
[323598473,1714102249634,-862.75,0.00011506,2]
[323598474,1714102249646,-500.0,0.00011506,2]
[323598475,1714102249657,-500.0,0.00011506,2]
[323598476,1714102249668,-782.82,0.00011506,2]
[323598477,1714102249680,-500.0,0.00011506,2]
[323598478,1714102249691,-500.0,0.00011506,2]
[323598479,1714102249706,-500.0,0.00011506,2]
[323598480,1714102249717,-500.0,0.00011506,2]
[323598481,1714102249727,-500.0,0.00011506,2]
[323598482,1714102249738,-581.29,0.00011506,2]
[323598483,1714102249749,-500.0,0.00011506,2]
[323598484,1714102249760,-500.0,0.00011506,2]
[323598485,1714102249771,-500.0,0.00011506,2]
[323598486,1714102249783,-500.0,0.00011506,2]
[323598487,1714102249794,-500.0,0.00011506,2]
[323598488,1714102249805,-587.38,0.00011506,2]
[323598489,1714102249816,-500.0,0.00011506,2]
[323598490,1714102249827,-500.0,0.00011506,2]
[323598491,1714102249838,-1036.85,0.00011506,2]
[323598492,1714102249849,-500.0,0.00011506,2]
[323598493,1714102249860,-500.0,0.00011506,2]
[323598494,1714102249871,-500.0,0.00011506,2]
[323598495,1714102249882,-500.0,0.00011506,2]
[323598496,1714102249893,-500.0,0.00011506,2]
[323598497,1714102249904,-500.0,0.00011506,2]
[323598498,1714102249915,-2910.43,0.00011506,2]
[323598499,1714102249926,-500.0,0.00011506,2]
[323598500,1714102249937,-652.6,0.00011506,2]
[323598501,1714102249947,-512.24,0.00011506,2]
[323598502,1714102249958,-651.6,0.00011506,2]
[323598503,1714102249969,-745.15,0.00011506,2]
[323598504,1714102249980,-500.0,0.00011506,2]
[323598505,1714102249990,-500.0,0.00011506,2]
[323598506,1714102250001,-620.66,0.00011506,2]
[323598507,1714102250011,-500.0,0.00011506,2]
[323598508,1714102250022,-4100.53,0.00011506,2]
[323598509,1714102250032,-500.0,0.00011506,2]
[323598510,1714102250045,-629.07,0.00011506,2]
[323598511,1714102250057,-500.0,0.00011506,2]
[323598512,1714102250067,-1497.52,0.00011506,2]
[323598513,1714102250078,-500.0,0.00011506,2]
[323598514,1714102250089,-1894.71,0.00011506,2]
[323598515,1714102250100,-500.0,0.00011506,2]
[323598516,1714102250111,-500.0,0.00011506,2]
[323598517,1714102250122,-2267.21,0.00011506,2]
[323598518,1714102250133,-500.0,0.00011506,2]
[323598519,1714102250144,-500.0,0.00011506,2]
[323598520,1714102250156,-500.0,0.00011506,2]
[323598521,1714102250169,-502.08,0.00011506,2]
[323598522,1714102250180,-500.0,0.00011506,2]
[323598523,1714102250191,-1120.56,0.00011506,2]
[323598524,1714102250202,-1779.92,0.00011506,2]
[323598525,1714102250213,-500.0,0.00011506,2]
[323598526,1714102250223,-500.0,0.00011506,2]
[323598527,1714102250234,-500.0,0.00011506,2]
[323598528,1714102250246,-500.0,0.00011506,2]
[323598529,1714102250257,-5674.12,0.00011506,2]
[323598530,1714102250268,-583.18,0.00011506,2]
[323598531,1714102250279,-773.03,0.00011506,2]
[323598532,1714102250291,-500.0,0.00011506,2]
[323598533,1714102250302,-258.39440534,0.00011506,2]
[323598534,1714102250314,-1065.24,0.00011506,2]
[323598535,1714102250325,-500.0,0.00011506,2]
[323598536,1714102250336,-303.80869088,0.00011506,2]
[323598537,1714102251775,-500.0,0.00010958,2]
[323598538,1714102251785,-500.0,0.00011232,2]
[323598539,1714102251795,-287.22130912,0.00011506,2]
[323598540,1714102251805,-767.15,0.00011506,2]
[323598541,1714102251814,-500.0,0.00011506,2]
[323598542,1714102251824,-500.0,0.00011506,2]
[323598543,1714102251834,-829.11,0.00011506,2]
[323598544,1714102251849,-500.0,0.00011506,2]
[323598545,1714102251859,-500.0,0.00011506,2]
[323598546,1714102251869,-500.0,0.00011506,2]
[323598547,1714102251878,-912.84,0.00011506,2]
[323598548,1714102251889,-500.0,0.00011506,2]
[323598549,1714102251898,-500.0,0.00011506,2]
[323598550,1714102251908,-500.0,0.00011506,2]
[323598551,1714102251918,-500.0,0.00011506,2]
[323598552,1714102251927,-500.0,0.00011506,2]
[323598553,1714102251936,-1195.58,0.00011506,2]
[323598554,1714102251946,-500.0,0.00011506,2]
[323598555,1714102251958,-576.48,0.00011506,2]
[323598556,1714102251967,-500.0,0.00011506,2]
[323598557,1714102251976,-1092.73,0.00011506,2]
[323598558,1714102251985,-672.62,0.00011506,2]
[323598559,1714102251995,-500.0,0.00011506,2]
[323598560,1714102252004,-500.0,0.00011506,2]
[323598561,1714102252014,-500.0,0.00011506,2]
[323598562,1714102252023,-2976.79,0.00011506,2]
[323598563,1714102252033,-758.36,0.00011506,2]
[323598564,1714102252044,-704.01,0.00011506,2]
[323598565,1714102252053,-676.52,0.00011506,2]
[323598566,1714102252063,-500.0,0.00011506,2]
[323598567,1714102252073,-1416.24,0.00011506,2]
[323598568,1714102252082,-1084.01,0.00011506,2]
[323598569,1714102252092,-500.0,0.00011506,2]
[323598570,1714102252103,-1769.41657262,0.00011506,2]
[323598571,1714102252117,-843.4,0.00011506,2]
[323598572,1714102252134,-377.91342738,0.00011506,2]
[323598573,1714102252144,-913.42,0.00011506,2]
[323598574,1714102252154,-27.66657262,0.00011506,2]
[323598575,1714102252541,-1981.5858548,0.000109,2]
[323598576,1714102252550,-577.88,0.00010958,2]
[323598577,1714102252559,-577.88,0.00011232,2]
[323598578,1714102252569,-472.33342738,0.00011506,2]
[323598579,1714102252578,-2274.77,0.00011506,2]
[323598580,1714102252587,-500.0,0.00011506,2]
[323598581,1714102252597,-500.0,0.00011506,2]
[323598582,1714102252608,-599.98,0.00011506,2]
[323598583,1714102252617,-2246.66,0.00011506,2]
[323598584,1714102252626,-2242.86,0.00011506,2]
[323598585,1714102252636,-887.18,0.00011506,2]
[323598586,1714102252645,-676.38,0.00011506,2]
[323598587,1714102252654,-500.0,0.00011506,2]
[323598588,1714102252663,-2210.04,0.00011506,2]
[323598589,1714102252674,-913.91,0.00011506,2]
[323598590,1714102252683,-943.47,0.00011506,2]
[323598591,1714102252693,-1053.46,0.00011506,2]
[323598592,1714102252702,-500.0,0.00011506,2]
[323598593,1714102252711,-1051.54,0.00011506,2]
[323598594,1714102252720,-500.0,0.00011506,2]
[323598595,1714102252730,-500.0,0.00011506,2]
[323598596,1714102252739,-4132.75,0.00011506,2]
[323598597,1714102252748,-926.08,0.00011506,2]
[323598598,1714102252757,-621.58,0.00011506,2]
[323598599,1714102252766,-500.0,0.00011506,2]
[323598600,1714102252775,-500.0,0.00011506,2]
[323598601,1714102252785,-500.0,0.00011506,2]
[323598602,1714102252796,-638.83,0.00011506,2]
[323598603,1714102252805,-537.85,0.00011506,2]
[323598604,1714102252814,-1170.45,0.00011506,2]
[323598605,1714102252823,-2102.7,0.00011506,2]
[323598606,1714102252832,-500.0,0.00011506,2]
[323598607,1714102252841,-8935.91,0.00011506,2]
[323598608,1714102252850,-746.03,0.00011506,2]
[323598609,1714102252859,-500.0,0.00011506,2]
[323598610,1714102252869,-500.0,0.00011506,2]
[323598611,1714102252878,-500.0,0.00011506,2]
[323598612,1714102252887,-932.58,0.00011506,2]
[323598613,1714102252896,-500.0,0.00011506,2]
[323598614,1714102252905,-500.0,0.00011506,2]
[323598615,1714102252914,-500.0,0.00011506,2]
[323598616,1714102252924,-500.0,0.00011506,2]
[323598617,1714102252933,-500.0,0.00011506,2]
[323598618,1714102252942,-988.53,0.00011506,2]
[323598619,1714102252951,-10552.33,0.00011506,2]
[323598620,1714102252960,-500.0,0.00011506,2]
[323598621,1714102252970,-407.39276513,0.00011506,2]
[323598622,1714102252979,-2681.41,0.00011506,2]
[323598623,1714102252989,-500.0,0.00011506,2]
[323598624,1714102252998,-700.15,0.00011506,2]
[323598625,1714102253007,-500.0,0.00011506,2]
[323598626,1714102253017,-1147.98,0.00011506,2]
[323598627,1714102253026,-763.39,0.00011506,2]
[323598628,1714102253035,-500.0,0.00011506,2]
[323598629,1714102253045,-500.0,0.00011506,2]
[323598630,1714102253054,-500.0,0.00011506,2]
[323598631,1714102253064,-500.0,0.00011506,2]
[323598632,1714102253074,-500.0,0.00011506,2]
[323598633,1714102253084,-500.0,0.00011506,2]
[323598634,1714102253093,-500.0,0.00011506,2]
[323598635,1714102253103,-500.0,0.00011506,2]
[323598636,1714102253113,-577.88,0.00011506,2]
[323598637,1714102253123,-35615.68635176,0.00011506,2]
[323598638,1714102253133,-9595.00935429,0.00011506,2]
[323598639,1714102253143,-413.87,0.00011507,2]
[323598640,1714102253153,-413.87,0.00011507,2]
[323598641,1714102253163,-910.7,0.00011507,2]
[323598642,1714102253173,-910.7,0.00011507,2]
[323598643,1714102253182,-413.87,0.00011507,2]
[323598644,1714102253192,-413.87,0.00011507,2]
[323598645,1714102253202,-910.7,0.00011507,2]
[323598646,1714102253211,-756.54,0.00011507,2]
[323598647,1714102253221,-412.13,0.00011507,2]
[323598648,1714102253230,-9787.15203248,0.00011542,2]
[323598649,1714102253241,-1684.0,0.000116,2]
[323598650,1714102253252,-150.0,0.0001163,2]
[323598651,1714102253262,-1000.0,0.00011632,2]
[323598652,1714102253271,-150.0,0.00011656,2]
[323598653,1714102253281,-1076.28249535,0.00011662,2]
[323598654,1714102253291,-150.0,0.00011672,2]
[323598655,1714102253300,-9787.15203248,0.00011678,2]
[323598656,1714102253310,-150.0,0.00011681,2]
[323598657,1714102253320,-150.0,0.00011682,2]
[323598658,1714102253330,-150.0,0.00011688,2]
[323598659,1714102253339,-150.0,0.00011692,2]
[323598660,1714102253349,-177.05,0.000117,2]
[323598661,1714102253358,-150.0,0.00011708,2]
[323598662,1714102253367,-150.0,0.0001171,2]
[323598663,1714102253377,-150.0,0.00011719,2]
[323598664,1714102253386,-150.0,0.00011728,2]
[323598665,1714102253397,-150.0,0.00011731,2]
[323598666,1714102253406,-150.0,0.00011732,2]
[323598667,1714102253417,-150.0,0.00011734,2]
[323598668,1714102253426,-150.0,0.00011736,2]
[323598669,1714102253436,-150.0,0.00011738,2]
[323598670,1714102253445,-150.0,0.00011747,2]
[323598671,1714102253454,-150.0,0.00011747,2]
[323598672,1714102253463,-150.0,0.0001175,2]
[323598673,1714102253473,-150.0,0.00011752,2]
[323598674,1714102253482,-150.0,0.00011753,2]
[323598675,1714102253491,-150.0,0.00011758,2]
[323598676,1714102253501,-150.0,0.00011761,2]
[323598677,1714102253510,-150.0,0.00011762,2]
[323598678,1714102253519,-150.0,0.00011763,2]
[323598679,1714102253528,-150.0,0.00011764,2]
[323598680,1714102253537,-150.0,0.00011767,2]
[323598681,1714102253548,-1203.85012692,0.00011769,2]
[323598682,1714102253557,-244.74498084,0.0001177,2]
[323598683,1714102253566,-150.0,0.00011772,2]
[323598684,1714102253576,-150.0,0.00011773,2]
[323598685,1714102253585,-150.0,0.00011776,2]
[323598686,1714102253594,-150.0,0.00011776,2]
[323598687,1714102253603,-521.58080523,0.0001178,2]
[323598688,1714102253613,-500.0,0.0001178,2]
[323598689,1714102253623,-500.0,0.0001178,2]
[323598690,1714102253632,-500.0,0.0001178,2]
[323598691,1714102253642,-263.92373673,0.0001178,2]
[323598692,1714102253652,-318.48436981,0.0001178,2]
[323598693,1714102253662,-500.0,0.0001178,2]
[323598694,1714102253672,-500.0,0.0001178,2]
[323598695,1714102253681,-500.0,0.0001178,2]
[323598696,1714102253691,-500.0,0.0001178,2]
[323598697,1714102253700,-230.0569673,0.0001178,2]
[323598698,1714102253709,-500.0,0.0001178,2]
[323598699,1714102253718,-500.0,0.0001178,2]
[323598700,1714102253727,-500.0,0.0001178,2]
[323598701,1714102253737,-500.0,0.0001178,2]
[323598702,1714102253747,-500.0,0.0001178,2]
[323598703,1714102253757,-742.26,0.0001178,2]
[323598704,1714102253767,-526.87,0.0001178,2]
[323598705,1714102253776,-500.0,0.0001178,2]
[323598706,1714102253787,-1277.29,0.0001178,2]
[323598707,1714102253798,-500.0,0.0001178,2]
[323598708,1714102253807,-500.0,0.0001178,2]
[323598709,1714102253816,-500.0,0.0001178,2]
[323598710,1714102253825,-500.0,0.0001178,2]
[323598711,1714102253835,-500.0,0.0001178,2]
[323598712,1714102253844,-500.0,0.0001178,2]
[323598713,1714102253854,-376.15013844,0.0001178,2]
[323598714,1714102253863,-500.0,0.0001178,2]
[323598715,1714102253873,-500.0,0.0001178,2]
[323598716,1714102253883,-500.0,0.0001178,2]
[323598717,1714102253892,-500.0,0.0001178,2]
[323598718,1714102253902,-500.0,0.0001178,2]
[323598719,1714102253911,-547.35,0.0001178,2]
[323598720,1714102253922,-500.0,0.0001178,2]
[323598721,1714102253931,-500.0,0.0001178,2]
[323598722,1714102253941,-500.0,0.0001178,2]
[323598723,1714102253952,-500.0,0.0001178,2]
[323598724,1714102253962,-500.0,0.0001178,2]
[323598725,1714102253972,-258.42426378,0.0001178,2]
[323598726,1714102253982,-687.33,0.0001178,2]
[323598727,1714102253991,-588.83205344,0.0001178,2]
[323598728,1714102254001,-500.0,0.0001178,2]
[323598729,1714102254011,-500.0,0.0001178,2]
[323598730,1714102254020,-500.0,0.0001178,2]
[323598731,1714102254029,-586.85,0.0001178,2]
[323598732,1714102254039,-500.0,0.0001178,2]
[323598733,1714102254050,-500.0,0.0001178,2]
[323598734,1714102254060,-500.0,0.0001178,2]
[323598735,1714102254071,-500.0,0.0001178,2]
[323598736,1714102254083,-500.0,0.0001178,2]
[323598737,1714102254093,-500.0,0.0001178,2]
[323598738,1714102254103,-500.0,0.0001178,2]
[323598739,1714102254112,-500.0,0.0001178,2]
[323598740,1714102254122,-500.0,0.0001178,2]
[323598741,1714102254131,-500.0,0.0001178,2]
[323598742,1714102254141,-574.62,0.0001178,2]
[323598743,1714102254151,-500.0,0.0001178,2]
[323598744,1714102254168,-588.27,0.0001178,2]
[323598745,1714102254179,-500.0,0.0001178,2]
[323598746,1714102254189,-645.19,0.0001178,2]
[323598747,1714102254198,-500.0,0.0001178,2]
[323598748,1714102254208,-500.0,0.0001178,2]